bitfinex-derivatives/quotes_SOLF0:USTF0_20240830
["timestamp","ask_amount","ask_price","bid_price","bid_amount"]
[1725030998655,0.0537516,134.41,134.38,3.77368679]
[1725030998966,0.0537516,134.41,134.38,0.05328679]
[1725030999661,0.0537516,134.41,134.38,3.77368679]
[1725030999966,0.0537516,134.41,134.38,0.05328679]
[1725031000565,0.0537516,134.41,134.39,3.7201]
[1725031000959,0.0537516,134.41,134.38,0.05328679]
[1725031001165,0.0537516,134.41,134.4,3.72]
[1725031001468,0.0537516,134.41,134.38,0.05328679]
[1725031001860,42.8337516,134.41,134.38,0.05328679]
[1725031002060,2.576,134.4,134.38,0.05328679]
[1725031002264,2.576,134.4,134.34,3.7215]
[1725031002668,42.78,134.39,134.32,3.7221]
[1725031002973,2.576,134.4,134.29,42.78]
[1725031003176,3.7209,134.37,134.32,7.36005544]
[1725031003474,2.576,134.4,134.32,7.36005544]
[1725031003475,0.04732502,134.36,134.32,3.63815544]
[1725031003660,0.04732502,134.36,134.34,3.7215]
[1725031003964,0.04732502,134.36,134.29,42.78]
[1725031004165,3.76862502,134.36,134.31,3.7225]
[1725031004372,0.04732502,134.36,134.29,3.72071402]
[1725031004563,0.04732502,134.36,134.26,42.78]
[1725031004764,0.05409057,134.32,134.26,3.62997396]
[1725031004965,0.05409057,134.32,134.21,42.78]
[1725031004966,0.05409057,134.32,134.22,2.5836]
[1725031005166,0.05669788,134.28,134.19,42.78]
[1725031005364,42.78,134.31,134.19,45.3636]
[1725031005568,0.0564032,134.26,134.19,49.12066694]
[1725031005768,0.0564032,134.26,134.21,42.78]
[1725031005963,0.0564032,134.26,134.25,3.7242]
[1725031006166,0.0564032,134.26,134.19,49.12066694]
[1725031006660,0.0564032,134.26,134.23,3.7245]
[1725031007067,0.0564032,134.26,134.19,6.34066694]
[1725031007472,42.8364032,134.26,134.19,3.75706694]
[1725031007671,42.78,134.24,134.12,42.78]
[1725031007974,42.78,134.24,134.16,3.69976395]
[1725031007975,0.04910473,134.19,134.16,3.69976395]
[1725031008569,42.82910473,134.19,134.08,42.78]
[1725031008774,0.05179257,134.15,134.08,42.78]
[1725031008966,0.05179257,134.15,134.08,3.65472725]
[1725031009172,0.05179257,134.15,134.06,42.78]
[1725031009370,0.05025512,134.12,134.08,42.78]
[1725031009677,0.05254896,134.11,134.1,3.7283]
[1725031009871,0.04705493,134.12,134.08,46.54350111]
[1725031010084,0.04935849,134.11,134.08,46.54350111]
[1725031010372,0.04775501,134.11,134.08,3.76350111]
[1725031010572,0.04775501,134.11,134.06,42.78]
[1725031010871,0.04775501,134.11,134.1,3.7283]
[1725031011175,42.78,134.22,134.1,42.78]
[1725031011677,42.78,134.2,134.08,42.78]
[1725031011975,42.78,134.17,134.05,42.78]
[1725031012169,0.05481878,134.12,134.11,3.728]
[1725031012366,5.1537,134.23,134.1,42.83305127]
[1725031012568,5.1537,134.23,134.13,42.78]
[1725031012764,5.1537,134.23,134.16,3.7265]
[1725031012963,5.1537,134.23,134.15,3.77813385]
[1725031013274,2.5357,134.23,134.13,42.78]
[1725031013571,0.05196277,134.19,134.17,0.04987879]
[1725031014474,0.05196277,134.19,134.17,3.80379144]
[1725031014673,0.05196277,134.19,134.18,3.7261]
[1725031014978,0.05196277,134.19,134.17,0.04987879]
[1725031016275,42.78,134.18,134.06,46.45603219]
[1725031016473,3.7259,134.19,134.08,42.78]
[1725031016778,42.78,134.2,134.08,46.54414976]
[1725031017270,0.05160516,134.15,134.13,0.04705122]
[1725031017472,0.04750547,134.15,134.13,0.04978505]
[1725031017671,0.04750547,134.15,134.14,3.727]
[1725031018378,2.5357,134.23,134.13,3.74131097]
[1725031018575,2.5357,134.23,134.14,42.78]
[1725031018780,2.5357,134.23,134.14,45.3723]
[1725031019076,42.78,134.26,134.14,45.3723]
[1725031019278,42.78,134.26,134.14,49.1513611]
[1725031019480,0.05218494,134.21,134.18,0.05575492]
[1725031020680,0.05218494,134.21,134.2,3.7255]
[1725031021077,0.05218494,134.21,134.18,0.05575492]
[1725031021276,0.05218494,134.21,134.2,3.7255]
[1725031021983,0.05218494,134.21,134.18,0.05575492]
[1725031021984,2.6456,134.3,134.19,42.78]
[1725031022286,3.7244,134.24,134.15,42.78]
[1725031022476,42.78,134.26,134.15,42.78]
[1725031022882,0.04745343,134.22,134.19,0.04704942]
[1725031023877,42.78,134.21,134.14,3.7790611]
[1725031024184,50.222,134.19,134.05,42.78]
[1725031024382,42.78,134.17,134.05,42.78]
[1725031024589,46.47730373,134.17,134.1,3.7283]
[1725031024885,0.05400823,134.15,134.12,0.05426466]
[1725031025188,0.05022929,134.15,134.12,3.73209935]
[1725031025386,0.05022929,134.15,134.12,0.05291033]
[1725031025587,3.7275,134.13,134.12,0.05291033]
[1725031026085,3.7275,134.13,134.03,2.6652]
[1725031026086,3.7279,134.12,134.03,2.6652]
[1725031026292,2.6332,134.12,134.03,2.6652]
[1725031026481,2.6332,134.12,134.04,42.78]
[1725031026784,2.6332,134.12,134.01,42.78]
[1725031026981,0.05418023,134.09,134.06,0.04902337]
[1725031029980,0.05418023,134.09,133.77,17.50431087]
[1725031029981,42.78,134.06,133.86,42.78]
[1725031030177,3.732,133.97,133.86,46.463175]
[1725031030379,46.42328636,134.0,133.86,46.463175]
[1725031030581,42.78,134.0,133.88,42.78]
[1725031030780,0.04883615,133.95,133.88,42.78]
[1725031030977,0.04883615,133.95,133.86,42.78]
[1725031031187,0.05142957,133.92,133.86,46.47286757]
[1725031031676,0.05142957,133.92,133.91,3.7336]
[1725031031882,0.05142957,133.92,133.91,46.5136]
[1725031032084,2.5597,134.05,133.91,46.56227586]
[1725031032386,7.442,134.12,133.92,5.3022]
[1725031032387,42.78,134.07,133.92,5.3022]
[1725031032592,42.78,133.95,133.74,7.79260039]
[1725031032884,42.78,133.97,133.86,42.78]
[1725031033087,0.05590869,133.93,133.9,0.04857794]
[1725031033686,1.0,134.04,133.9,0.04857794]
[1725031033878,42.78,134.03,133.91,42.78]
[1725031034085,2.5597,134.06,133.93,42.78]
[1725031034086,45.3397,134.06,133.93,42.78]
[1725031034586,42.78,134.06,133.93,42.78]
[1725031034787,50.57398206,134.2,133.98,0.04755611]
[1725031034788,0.05423587,134.01,133.98,0.04755611]
[1725031034980,0.0555069,134.01,133.98,42.83631378]
[1725031035284,0.0555069,134.01,133.98,0.05631378]
[1725031035488,0.0555069,134.01,133.99,3.7314]
[1725031035679,0.0555069,134.01,133.98,42.83631378]
[1725031036085,0.0555069,134.01,134.0,3.7311]
[1725031036590,42.78,134.12,134.0,46.48561269]
[1725031036884,42.78,134.17,134.03,42.78]
[1725031037076,42.78,134.17,134.05,42.78]
[1725031037479,3.7263,134.18,134.07,42.78]
[1725031037680,42.78,134.24,134.11,42.83317612]
[1725031037883,42.78,134.24,134.11,42.78]
[1725031038184,42.78,134.24,134.07,46.52514917]
[1725031038185,42.78,134.24,134.14,42.78]
[1725031038580,42.78,134.24,134.14,3.80439642]
[1725031038781,0.0481468,134.2,134.18,0.05678025]
[1725031039289,0.0481468,134.2,134.19,3.7258]
[1725031039785,42.78,134.27,134.17,3.70938897]
[1725031039986,42.78,134.29,134.16,42.78]
[1725031040387,42.78,134.27,134.16,42.78]
[1725031040686,0.04976171,134.23,134.2,0.05082085]
[1725031040891,0.05548281,134.23,134.2,0.05421365]
[1725031041190,0.05548281,134.23,134.2,3.76881871]
[1725031041381,0.05548281,134.23,134.2,0.05421365]
[1725031041577,0.05548281,134.23,134.22,3.725]
[1725031042880,42.78,134.36,134.21,42.78]
[1725031043085,42.78,134.36,134.24,42.78]
[1725031043284,42.78,134.39,134.27,42.78]
[1725031043487,42.78,134.39,134.27,46.41846268]
[1725031043685,42.78,134.41,134.27,46.41846268]
[1725031043885,0.0476115,134.35,134.33,0.05197801]
[1725031044079,42.78,134.47,134.33,0.05197801]
[1725031044080,42.78,134.44,134.33,0.05197801]
[1725031044287,42.78,134.47,134.32,42.78]
[1725031044490,42.78,134.47,134.28,2.5746]
[1725031044491,42.78,134.47,134.34,42.78]
[1725031044678,3.7187,134.45,134.38,3.7203]
[1725031044882,42.78,134.42,134.36,3.69867598]
[1725031045091,42.78,134.4,134.28,2.5746]
[1725031045386,42.78,134.37,134.27,3.63846268]
[1725031045591,0.05621028,134.35,134.33,0.05418129]
[1725031045793,0.05342084,134.35,134.33,0.05234974]
[1725031048991,0.05342084,134.35,134.34,3.7217]
[1725031049894,0.05342084,134.35,134.33,0.05234974]
[1725031050093,3.77482084,134.35,134.33,0.05234974]
[1725031050284,3.77482084,134.35,134.27,3.63619444]
[1725031050285,3.74227648,134.35,134.27,3.63619444]
[1725031050487,42.78,134.34,134.2,3.63771786]
[1725031050689,3.7227,134.31,134.2,3.63771786]
[1725031050892,3.7227,134.31,134.24,3.7242]
[1725031051197,3.7231,134.29,134.21,2.5882]
[1725031051400,0.0481864,134.26,134.24,0.05299676]
[1725031051703,0.05257295,134.26,134.24,0.05299676]
[1725031052790,0.05257295,134.26,134.2,7.414624]
[1725031052791,42.83257295,134.26,134.14,5.0899]
[1725031052996,42.78,134.23,134.15,3.76637879]
[1725031053502,3.7261,134.18,134.07,7.7004]
[1725031053688,0.05224731,134.14,134.11,0.05469486]
[1725031053892,0.05224731,134.14,134.07,50.4804]
[1725031053893,42.78,134.21,134.07,50.4804]
[1725031054100,0.04854602,134.14,134.13,3.7273]
[1725031054399,0.0547698,134.15,134.13,3.68572067]
[1725031054596,0.0567004,134.15,134.13,0.05273149]
[1725031054791,0.0567004,134.15,134.13,3.79285669]
[1725031054989,0.0567004,134.15,134.13,0.05273149]
[1725031055989,0.0567004,134.15,134.13,3.80664414]
[1725031056298,0.0567004,134.15,134.14,3.7272]
[1725031056497,42.78,134.23,134.13,3.75391265]
[1725031056793,3.7258,134.2,134.14,3.727]
[1725031056989,42.78,134.23,134.13,3.68646594]
[1725031057295,42.78,134.23,134.09,42.78]
[1725031057499,0.05048684,134.17,134.15,0.0492862]
[1725031057700,0.05673271,134.17,134.15,0.0492862]
[1725031058591,42.78,134.28,134.15,0.0492862]
[1725031058796,42.78,134.28,134.14,46.575275]
[1725031058993,3.7239,134.26,134.2,3.7254]
[1725031059396,3.7236,134.27,134.21,3.7252]
[1725031059594,0.05587942,134.24,134.22,0.05409083]
[1725031060105,0.05587942,134.24,134.23,3.7247]
[1725031060296,0.05587942,134.24,134.22,0.05409083]
[1725031062699,42.78,134.23,134.11,42.78]
[1725031063294,3.7255,134.21,134.16,3.7265]
[1725031063489,3.7255,134.21,134.16,7.46151154]
[1725031063798,3.7255,134.21,134.17,0.05515199]
[1725031063799,0.0473295,134.2,134.17,0.05515199]
[1725031064097,0.04853403,134.2,134.17,0.04802042]
[1725031064396,0.04853403,134.2,134.17,3.77422042]
[1725031065197,42.78,134.18,134.17,0.04802042]
[1725031065401,42.78,134.18,134.07,7.7004]
[1725031065602,3.7275,134.13,134.08,3.7288]
[1725031065798,42.78,134.13,134.06,3.6688505]
[1725031066000,42.78,134.13,134.0,50.4132]
[1725031066304,0.04718282,134.08,134.05,0.0543445]
[1725031067197,0.04718282,134.08,134.06,3.7293]
[1725031067603,0.04718282,134.08,134.05,0.0543445]
[1725031067804,0.04718282,134.08,134.07,3.7292]
[1725031068004,0.04718282,134.08,134.05,0.0543445]
[1725031068307,0.04718282,134.08,134.06,3.7292]
[1725031068503,0.04718282,134.08,134.05,0.0543445]
[1725031068906,0.04718282,134.08,134.05,3.7838445]
[1725031069200,0.04718282,134.08,134.05,0.0543445]
[1725031069400,3.7294,134.07,134.05,0.0543445]
[1725031069604,42.78,134.06,134.05,0.0543445]
[1725031069905,42.78,134.06,134.0,3.7309]
[1725031070105,42.78,134.06,133.94,54.07644606]
[1725031070702,0.05108823,134.01,133.99,0.05008978]
[1725031070912,42.78,134.04,133.99,0.05008978]
[1725031071099,42.78,134.01,134.0,0.05050705]
[1725031071300,42.78,134.01,133.87,46.56699768]
[1725031071506,42.78,134.01,133.93,3.7329]
[1725031071507,3.7316,133.99,133.93,3.7329]
[1725031071706,42.78,134.01,133.94,3.80686975]
[1725031072005,42.78,134.01,133.87,42.78]
[1725031072303,0.04804323,133.95,133.93,0.04797043]
[1725031072504,42.78,134.04,133.93,0.04797043]
[1725031072707,42.78,134.04,133.92,42.78]
[1725031073106,42.78,133.99,133.87,3.81209078]
[1725031073410,42.78,133.99,133.86,7.6205]
[1725031073411,42.78,133.99,133.88,42.78]
[1725031073607,0.05311492,133.94,133.92,0.05256526]
[1725031073809,42.78,134.02,133.92,0.0472884]
[1725031074004,42.78,134.02,133.96,0.05674917]
[1725031074206,0.04887034,134.0,133.98,0.05604704]
[1725031075313,3.732,133.97,133.88,42.78]
[1725031075504,3.732,133.97,133.88,46.53289114]
[1725031075812,42.78,133.99,133.88,3.75289114]
[1725031076014,42.78,133.99,133.86,50.4005]
[1725031076224,0.05387592,133.94,133.91,0.04856239]
[1725031077018,42.78,133.95,133.82,42.78]
[1725031077019,42.78,133.92,133.82,42.78]
[1725031077312,42.78,133.92,133.8,6.37528949]
[1725031077511,42.78,133.9,133.8,3.77628949]
[1725031077707,42.78,133.9,133.78,2.4365]
[1725031077905,3.7346,133.88,133.78,2.4365]
[1725031078210,0.05458129,133.85,133.83,0.052003]
[1725031078520,0.05665886,133.85,133.83,0.052003]
[1725031080410,0.05665886,133.85,133.84,3.7356]
[1725031080914,0.05665886,133.85,133.83,0.052003]
[1725031080915,0.05665886,133.85,133.83,3.787803]
[1725031081311,0.05665886,133.85,133.83,0.052003]
[1725031081909,0.05665886,133.85,133.84,3.7356]
[1725031082521,0.05665886,133.85,133.83,0.052003]
[1725031083319,42.83665886,133.85,133.73,5.085]
[1725031083617,42.78,133.85,133.73,5.085]
[1725031084016,42.78,133.87,133.82,3.7359]
[1725031084319,0.04820902,133.86,133.83,0.05168991]
[1725031084714,0.04820902,133.86,133.85,3.7353]
[1725031085123,0.04820902,133.86,133.83,0.05168991]
[1725031085814,42.78,133.88,133.75,42.78]
[1725031086018,42.78,133.9,133.78,42.78]
[1725031086418,3.7349,133.87,133.78,42.78]
[1725031086612,42.78,133.87,133.75,46.51188405]
[1725031086820,0.04949899,133.82,133.73,47.865]
[1725031087118,0.04915589,133.79,133.73,47.865]
[1725031087318,0.04915589,133.79,133.75,3.7378]
[1725031087512,0.04915589,133.79,133.69,2.4964]
[1725031087715,0.04915589,133.79,133.67,3.81767779]
[1725031087716,0.04872411,133.75,133.67,46.59767779]
[1725031087921,0.04872411,133.75,133.65,45.3329]
[1725031088231,0.04925954,133.71,133.66,0.99085426]
[1725031088416,42.78,133.76,133.65,2.5529]
[1725031088616,42.78,133.76,133.65,6.27515274]
[1725031088821,0.04794304,133.72,133.65,49.05515274]
[1725031089124,0.04794304,133.72,133.65,6.27515274]
[1725031089420,0.04794304,133.72,133.64,42.78]
[1725031089623,0.04794304,133.72,133.64,46.5332684]
[1725031089824,0.04794304,133.72,133.67,42.78]
[1725031090012,0.04794304,133.72,133.69,42.78]
[1725031090211,42.78,133.83,133.69,3.77643672]
[1725031090415,3.7376,133.77,133.68,45.3811]
[1725031090616,42.78,133.78,133.68,6.42051023]
[1725031091017,42.78,133.75,133.63,42.78]
[1725031091217,42.78,133.73,133.62,2.6011]
[1725031091418,0.04827499,133.7,133.68,0.05103979]
[1725031091617,3.7398,133.69,133.68,0.05103979]
[1725031092020,0.04827499,133.7,133.68,0.05103979]
[1725031092729,3.78777499,133.7,133.68,0.05103979]
[1725031093023,0.04827499,133.7,133.68,0.05103979]
[1725031093532,42.78,133.8,133.68,0.05103979]
[1725031093823,2.5201,133.82,133.67,42.78]
[1725031093824,2.5201,133.82,133.72,42.78]
[1725031094027,2.5201,133.82,133.72,46.43244572]
[1725031094324,3.7373,133.78,133.72,46.43244572]
[1725031094525,2.4331,133.83,133.72,46.43244572]
[1725031094824,3.7376,133.77,133.74,0.05232231]
[1725031095022,0.05639462,133.79,133.67,42.78]
[1725031095222,42.78,133.77,133.67,42.78]
[1725031095525,0.05027954,133.74,133.72,0.05089811]
[1725031095824,2.4331,133.83,133.72,0.05052024]
[1725031096025,42.78,133.78,133.67,42.78]
[1725031096223,42.78,133.78,133.66,2.6659]
[1725031096527,3.7391,133.72,133.66,6.4064]
[1725031096722,0.05158331,133.7,133.68,0.04743512]
[1725031096921,0.04803226,133.7,133.68,0.04743512]
[1725031097924,42.78,133.78,133.68,0.04743512]
[1725031098129,2.4331,133.83,133.67,42.78]
[1725031098130,42.78,133.8,133.67,42.78]
[1725031098335,42.78,133.8,133.69,42.78]
[1725031098517,3.7366,133.81,133.71,42.78]
[1725031098828,2.4331,133.83,133.71,42.78]
[1725031099128,0.05708245,133.78,133.76,0.05032251]
[1725031099326,0.05449283,133.78,133.76,0.05032251]
[1725031099720,3.79179283,133.78,133.76,0.05032251]
[1725031100031,0.05449283,133.78,133.76,0.05032251]
[1725031100231,0.05449283,133.78,133.76,3.78792251]
[1725031100430,0.05449283,133.78,133.76,0.05032251]
[1725031100923,0.05449283,133.78,133.76,3.78792251]
[1725031101233,0.05449283,133.78,133.76,0.05032251]
[1725031101617,7.4673,133.92,133.76,0.05032251]
[1725031101829,3.7351,133.86,133.8,3.7365]
[1725031102120,42.78,133.93,133.74,2.605]
[1725031102121,42.78,133.92,133.78,42.78]
[1725031102319,42.78,133.89,133.76,42.78]
[1725031102518,0.0471946,133.84,133.81,0.04876409]
[1725031102725,0.0471946,133.84,133.81,3.70221238]
[1725031102726,0.0551048,133.84,133.81,3.70221238]
[1725031102925,0.0551048,133.84,133.83,3.7358]
[1725031103127,42.78,133.94,133.81,46.48221238]
[1725031103128,42.78,133.94,133.82,2.6675]
[1725031103333,42.78,133.91,133.82,2.6675]
[1725031103529,3.7348,133.87,133.82,2.6675]
[1725031103829,42.78,133.93,133.82,2.6675]
[1725031103830,42.78,133.89,133.82,2.6675]
[1725031104128,0.04836195,133.87,133.84,3.79021735]
[1725031104332,0.0555772,133.87,133.84,0.05524794]
[1725031104521,3.7319,133.98,133.92,3.7332]
[1725031104725,47.6956,134.02,133.88,42.78]
[1725031105033,42.78,134.0,133.89,2.5811]
[1725031105330,45.2452,134.02,133.89,2.5811]
[1725031105528,0.0493562,133.97,133.94,0.05446658]
[1725031105942,0.0493562,133.97,133.94,42.83446658]
[1725031106325,3.73,134.04,133.94,42.78]
[1725031106530,42.78,134.07,133.94,42.78]
[1725031106724,42.78,134.05,133.91,42.78]
[1725031107030,42.78,134.03,133.91,42.78]
[1725031107224,42.78,134.05,133.91,42.78]
[1725031107426,0.05128292,133.99,133.97,0.05023021]
[1725031107619,0.05579633,133.99,133.97,3.82177389]
[1725031108620,45.4631,134.11,133.98,42.78]
[1725031108823,42.78,134.09,134.0,3.7311]
[1725031109030,42.78,134.07,133.98,3.6902186]
[1725031109219,42.78,134.07,133.94,42.78]
[1725031109626,0.05221268,134.02,133.99,0.05456558]
[1725031109834,0.05221268,134.02,133.99,3.86229519]
[1725031110026,0.05221268,134.02,133.99,0.05456558]
[1725031110725,0.05221268,134.02,133.99,3.80046232]
[1725031110932,0.05221268,134.02,134.0,3.7309]
[1725031111126,0.05221268,134.02,134.01,3.68621307]
[1725031111429,0.05221268,134.02,133.99,0.05456558]
[1725031111831,0.05221268,134.02,133.99,3.75122329]
[1725031112629,42.83221268,134.02,133.99,0.05456558]
[1725031112936,42.83221268,134.02,133.89,45.3736]
[1725031112937,85.56,134.0,133.9,2.6384]
[1725031113130,42.78,133.96,133.89,3.68695911]
[1725031113337,42.78,133.94,133.83,5.232]
[1725031114037,0.04915683,133.9,133.87,0.05699733]
[1725031114235,0.04913331,133.9,133.89,3.7342]
[1725031114431,42.78,134.0,133.88,42.78]
[1725031114833,42.78,134.0,133.95,3.7325]
[1725031115137,42.78,133.98,133.88,3.66880692]
[1725031115340,42.78,133.98,133.85,42.78]
[1725031115541,0.05162901,133.93,133.9,0.05051908]
[1725031115941,0.05162901,133.93,133.92,3.7333]
[1725031116140,0.05162901,133.93,133.9,0.05051908]
[1725031116743,42.83162901,133.93,133.9,0.05051908]
[1725031117138,3.7336,133.91,133.9,0.05051908]
[1725031117633,3.7334,133.92,133.9,0.05051908]
[1725031118045,42.83162901,133.93,133.9,0.05051908]
[1725031118247,3.7336,133.91,133.9,0.05051908]
[1725031118546,42.83162901,133.93,133.9,0.05051908]
[1725031118748,3.7336,133.92,133.9,0.05051908]
[1725031118939,42.83162901,133.93,133.9,0.05051908]
[1725031119743,0.05162901,133.93,133.9,0.05051908]
[1725031120352,3.7335,133.92,133.9,0.05051908]
[1725031120957,0.05162901,133.93,133.9,0.05051908]
[1725031121952,3.78492901,133.93,133.9,0.05051908]
[1725031122143,0.05162901,133.93,133.9,0.05051908]
[1725031122953,42.83162901,133.93,133.9,0.05051908]
[1725031123245,3.7335,133.92,133.9,0.05051908]
[1725031123750,0.05162901,133.93,133.9,0.05051908]
[1725031124146,42.83162901,133.93,133.9,0.05051908]
[1725031124355,42.78,133.91,133.81,2.4378]
[1725031124643,42.78,133.91,133.75,2.4352]
[1725031124644,42.78,133.91,133.83,3.7357]
[1725031124950,3.7353,133.86,133.76,45.3163]
[1725031125139,42.78,133.91,133.76,45.3163]
[1725031125343,0.05122697,133.85,133.82,0.04824985]
[1725031125541,0.05122697,133.85,133.75,4.9904]
[1725031125542,42.78,133.84,133.78,3.7371]
[1725031125744,3.7363,133.82,133.78,3.7371]
[1725031126042,42.78,133.86,133.81,3.7362]
[1725031126240,42.78,133.86,133.76,42.78]
[1725031126443,42.78,133.86,133.75,4.9904]
[1725031126651,0.04966603,133.82,133.79,0.05174498]
[1725031127050,2.4472,133.92,133.8,42.78]
[1725031127246,3.66116751,133.99,133.8,42.78]
[1725031127247,42.78,133.95,133.83,42.78]
[1725031127554,42.78,133.95,133.83,3.67799775]
[1725031127745,42.78,133.93,133.85,3.7351]
[1725031127946,42.78,133.93,133.84,3.66118789]
[1725031128147,0.05077669,133.9,133.87,0.04796042]
[1725031128349,42.78,133.88,133.75,4.9904]
[1725031128547,3.736,133.83,133.75,8.77187179]
[1725031128848,42.78,133.86,133.75,8.77187179]
[1725031129247,42.78,133.86,133.78,3.737]
[1725031129450,42.78,133.86,133.75,8.77187179]
[1725031129451,3.79021754,133.82,133.79,0.05416997]
[1725031129756,0.05401754,133.82,133.79,0.05416997]
[1725031130250,0.05401754,133.82,133.79,3.79106997]
[1725031130448,0.05401754,133.82,133.79,0.05416997]
[1725031130849,0.05401754,133.82,133.79,3.79086997]
[1725031131150,0.05401754,133.82,133.79,0.05416997]
[1725031131351,0.05401754,133.82,133.81,3.7364]
[1725031131749,0.05401754,133.82,133.79,0.05416997]
[1725031133355,3.79031754,133.82,133.79,0.05416997]
[1725031133548,0.05401754,133.82,133.79,0.05416997]
[1725031134352,3.7364,133.81,133.79,0.05416997]
[1725031134551,0.05401754,133.82,133.79,0.05416997]
[1725031134953,42.78,133.81,133.75,3.7379]
[1725031135256,3.81396298,133.82,133.75,3.71647553]
[1725031135450,3.81396298,133.82,133.73,42.78]
[1725031135757,42.78,133.86,133.73,46.4266282]
[1725031136062,42.83424786,133.81,133.78,0.05066832]
[1725031136359,0.05424786,133.81,133.78,0.05066832]
[1725031136548,3.7369,133.8,133.78,0.05066832]
[1725031136949,0.05424786,133.81,133.78,3.78786832]
[1725031137153,0.05424786,133.81,133.78,0.05066832]
[1725031137852,0.05424786,133.81,133.78,3.78766832]
[1725031138159,0.05424786,133.81,133.78,0.05066832]
[1725031138454,42.83424786,133.81,133.7,42.78]
[1725031138660,42.78,133.81,133.7,46.43919282]
[1725031138955,42.78,133.84,133.72,42.78]
[1725031139160,2.5521,133.83,133.72,42.78]
[1725031139362,2.5521,133.83,133.74,3.7383]
[1725031139553,0.04864519,133.8,133.77,0.0565387]
[1725031140249,0.04864519,133.8,133.78,3.8064275]
[1725031140453,0.04864519,133.8,133.77,0.0565387]
[1725031140651,0.04864519,133.8,133.78,3.64349775]
[1725031141256,0.04864519,133.8,133.79,3.737]
[1725031141452,0.04864519,133.8,133.77,0.0565387]
[1725031141653,0.04864519,133.8,133.77,3.85399759]
[1725031141856,0.04864519,133.8,133.79,3.737]
[1725031142159,353.6449,134.08,133.79,3.737]
[1725031142160,1.0,133.92,133.79,42.78]
[1725031142361,3.7339,133.91,133.85,3.7352]
[1725031142663,1.0,133.92,133.83,42.78]
[1725031142854,1.0,133.92,133.77,11.21939461]
[1725031142855,46.45077727,133.91,133.8,42.78]
[1725031143057,42.78,133.87,133.77,3.74439461]
[1725031143366,0.04779104,133.83,133.81,0.05587371]
[1725031143667,0.04779104,133.83,133.7,46.43919282]
[1725031143863,0.04779104,133.83,133.71,0.99028785]
[1725031143864,42.78,133.82,133.71,0.99028785]
[1725031144160,42.78,133.82,133.66,5.2815]
[1725031144161,42.78,133.79,133.72,3.79873039]
[1725031144352,42.78,133.79,133.68,42.78]
[1725031144558,42.78,133.82,133.68,42.78]
[1725031144762,0.05310559,133.76,133.74,0.0525921]
[1725031145056,0.04761231,133.76,133.74,0.0525921]
[1725031145553,42.78,133.75,133.68,3.67998506]
[1725031145757,42.78,133.77,133.65,42.78]
[1725031145957,42.78,133.77,133.66,6.37261725]
[1725031146160,42.78,133.79,133.68,42.78]
[1725031146357,0.04783834,133.75,133.72,0.05468479]
[1725031147663,42.78,133.73,133.65,3.81261406]
[1725031147856,42.78,133.73,133.62,2.5249]
[1725031148260,2.4534,133.74,133.63,42.78]
[1725031148460,3.7395,133.7,133.64,3.7412]
[1725031148658,3.79152143,133.7,133.67,0.05356384]
[1725031149052,3.79152143,133.7,133.45,52.95032544]
[1725031149053,7.442,133.73,133.38,50.50592858]
[1725031149256,2.4534,133.74,133.42,5.2093]
[1725031149257,42.78,133.56,133.42,5.2093]
[1725031149464,42.78,133.56,133.42,47.9893]
[1725031149663,42.78,133.6,133.44,42.78]
[1725031149966,42.78,133.6,133.47,42.78]
[1725031150168,0.05377493,133.53,133.51,0.04923503]
[1725031150356,0.05504403,133.53,133.51,0.04779317]
[1725031150860,0.05504403,133.53,133.51,2.59549317]
[1725031151056,0.05504403,133.53,133.51,0.04779317]
[1725031151669,0.05504403,133.53,133.41,42.78]
[1725031151670,42.78,133.49,133.37,2.6575]
[1725031151962,42.78,133.54,133.42,2.5672]
[1725031152463,42.78,133.54,133.42,6.34949229]